Cogmind - Beta 13 @@@ ROGUE MODE // 2024.04.01 @ 16:56:08 Player: BobDABuilder9001 Result: Self-destructed Performance ------------- Evolutions (1) 500 Regions Visited (3) 600 Robots Destroyed (17) 85 Value Destroyed (514) 514 Prototype IDs (0) 0 Alien Tech Used (0) 0 Bonus (0) 0 TOTAL SCORE: 1699 Bonus ------- None Cogmind --------- Core Integrity 351/400 Matter 290/300 Energy 250/250 System Corruption 0% Temperature Cool (0) Movement Walking (120) Location -9/Mines Parts ------- > --- POWER (1) -------- Ion Engine > --- PROPULSION (2) --- Aluminum Leg Aluminum Leg > --- UTILITY (3) ------ Heat Sink Sensor Array Power Shielding > --- WEAPON (3) ------- Small Laser Beam Rifle Spread Laser > --- INVENTORY (5) ---- (None) Peak State ------------ > --- POWER ------------ Light Ion Engine > --- PROPULSION ------- Aluminum Leg Aluminum Leg > --- UTILITY ---------- Sensor Array Power Shielding Power Shielding > --- WEAPON ----------- Small Laser Beam Rifle Beam Rifle > --- INVENTORY -------- Small Laser Rocket Launcher [Rating: 11] Favorites ----------- Power Light Ion Engine Engine Light Ion Engine Power Core Light Nuclear Core Propulsion Aluminum Leg Leg Aluminum Leg Wheel Wheel Utility Power Shielding Device Sensor Array Protection Power Shielding Weapon Small Laser Energy Gun Small Laser Ballistic Gun Assault Rifle Build | -11 -10 -9 -9 ------- Run | Yrd Mat Mat Min Slots Evolved 2 | . . 2 . Power . | . . . . Propulsion . | . . . . Utility 1 | . . 1 . Weapon 1 | . . 1 . Parts Attached 24 | 5 10 9 . Power 5 | 1 2 2 . Engine 4 | 1 1 2 . Core 1 | . 1 . . Reactor . | . . . . Propulsion 6 | 2 2 2 . Treads . | . . . . Leg 4 | . 2 2 . Wheel 2 | 2 . . . Hover . | . . . . Flight . | . . . . Utility 4 | . 2 2 . Device 2 | . . 2 . Storage . | . . . . Processor . | . . . . Hackware . | . . . . Protection 2 | . 2 . . Artifact . | . . . . Weapon 9 | 2 4 3 . Energy Gun 8 | 1 4 3 . Energy Cannon . | . . . . Ballistic Gun 1 | 1 . . . Ballistic Cannon . | . . . . Launcher . | . . . . Special Weapon . | . . . . Impact Weapon . | . . . . Slashing Weapon . | . . . . Piercing Weapon . | . . . . Special Melee Weapon . | . . . . Unidentified Prototypes . | . . . . Parts Lost 7 | . 5 2 . Power 1 | . 1 . . Propulsion 2 | . 2 . . Utility . | . . . . Weapon 4 | . 2 2 . Highest Loss Streak 5 | . 5 2 . To Critical Strikes . | . . . . Average Slot Usage (%) 96 | . 91 98 . Engine 10 | . 8 11 . Core 1 | . 4 . . Leg 18 | . 8 22 . Wheel 4 | . 16 . . Device 9 | . . 13 . Protection 21 | . 25 19 . Energy Gun 27 | . 18 31 . Ballistic Gun 2 | . 8 . . Naked Turns . | . . . . Heaviest Build 15 | 6 11 15 . Greatest Support 20 | 20 20 20 . Greatest Overweight (x) 2 | . 2 . . Average Overweight (x) . | . . . . Largest Inventory Capacity 5 | 5 5 5 . Average Capacity 5 | 5 5 5 . Most Carried 4 | 1 4 4 . Average Carried 1 | . 1 1 . Final Capacity 5 | 5 5 5 5 Final Carried 4 | . 4 . . Class Distribution -------------------- 51% | Tank 26% | Mutant 13% | Scavenger-Skirmisher 8% | Scavenger-Mutant Dominant Class ---------------- Mutant | -10/Materials Tank | -9/Materials Tank | -9/Mines Resources | -11 -10 -9 -9 ----------- Run | Yrd Mat Mat Min Matter Collected 482 | 259 123 100 . Remotely . | . . . . Salvage Created 717 | 37 255 425 . Parts 41 | 4 13 24 . Haulers Intercepted . | . . . . Recyclers Shooed . | . . . . Parts Field Recycled . | . . . . Retrieved Matter . | . . . . Parts Self-Destructed . | . . . . Prevented . | . . . . Kills | -11 -10 -9 -9 ------- Run | Yrd Mat Mat Min Combat Hostiles Destroyed 16 | 1 6 9 . Guns 16 | 1 6 9 . Classes Destroyed 3 | 1 . 2 . Watcher 1 | . . 1 . Swarmer 3 | . . 3 . Grunt 13 | 1 6 6 . Best Kill Streak 4 | 1 3 4 . Combat Bots Only 4 | 1 3 4 . Max Kills in Single Turn 2 | 1 1 2 . Gunslinging . | . . . . Exploded . | . . . . Melee . | . . . . Uniques/NPCs Destroyed . | . . . . Combat | -11 -10 -9 -9 -------- Run | Yrd Mat Mat Min Hostile Shots Fired 108 | 3 65 40 . Missed 28 | 2 13 13 . Damage Taken 959 | 11 631 317 . Core 296 | 11 236 49 . Absorbed by Shields . | . . . . Redirected to Shielding 24 | . 15 9 . Core Remaining (%) 48 | 95 1 . . Volleys Fired 57 | 3 35 19 . Largest 3 | 2 2 3 . Hottest 161 | 60 80 161 . Shots Fired 116 | 6 61 49 . Gun 116 | 6 61 49 . Cannon . | . . . . Launcher . | . . . . Special . | . . . . Kinetic 24 | 3 21 . . Thermal 92 | 3 40 49 . Explosive . | . . . . Electromagnetic . | . . . . Robot Hit Streak 18 | 2 10 18 . Robot Miss Streak 5 | 2 5 4 . Penetration Max . | . . . . Secondary Targets 1 | . . 1 . Max Gunslinging Chain 1 | . . 1 . Shots Hit Robots 74 | 3 39 32 . Core Hits 33 | 1 13 19 . Critical Kills 1 | 1 . . . Critical Parts Destroyed . | . . . . Critical Strikes 2 | 1 . 1 . Burn 1 | . . 1 . Destroy 1 | 1 . . . Melee Attacks . | . . . . Impact . | . . . . Slashing . | . . . . Piercing . | . . . . Sneak Attacks . | . . . . Combat Hostiles . | . . . . Follow-up Attacks . | . . . . Damage Inflicted 954 | 47 445 462 . Guns 954 | 47 445 462 . Cannons . | . . . . Explosions . | . . . . Melee . | . . . . Ramming . | . . . . Kinetic 197 | 25 172 . . Thermal 757 | 22 273 462 . Explosive . | . . . . Electromagnetic . | . . . . Impact . | . . . . Slashing . | . . . . Piercing . | . . . . Highest Corruption . | . . . . Average Corruption . | . . . . Corruption Purged . | . . . . Corruption Blocked . | . . . . Overload Shots . | . . . . Overflow Damage . | . . . . Projectiles . | . . . . Explosions . | . . . . Melee . | . . . . Knockbacks . | . . . . Impact . | . . . . Kinetic . | . . . . Secondary . | . . . . Self-Inflicted Damage . | . . . . Shots . | . . . . Rammed . | . . . . Targets Rammed . | . . . . Kicked . | . . . . Crushed . | . . . . Highest Temperature 572 | 6 198 572 . Average Temperature 130 | 6 70 196 . Received Heat Transfer 546 | 6 366 174 . Effects 18 | . . 18 . Shutdowns 2 | . . 2 . Energy Bleed 2 | . . 2 . Short Circuit 1 | . . 1 . Damage (minor) 1 | . . 1 . Damage (major) 12 | . . 12 . Siege Activations . | . . . . Robots Corrupted . | . . . . Combat Hostiles . | . . . . Parts Fried . | . . . . Impact Corruptions . | . . . . Robots Melted . | . . . . Combat Hostiles . | . . . . Parts Melted 5 | . 2 3 . Heat Transferred 1861 | 50 625 1186 . Parts Sabotaged . | . . . . Parts Stolen . | . . . . Parts Stripped . | . . . . Power Chain Reactions . | . . . . Alert | -11 -10 -9 -9 ------- Run | Yrd Mat Mat Min Peak Influence 159 | 20 134 159 . Initial 56 | . 13 56 46 Average 82 | 2 74 94 . Maximum Alert Level . | . . . . Low Security (%) 100 | 100 100 100 . Level 1 . | . . . . Level 2 . | . . . . Level 3 . | . . . . Level 4 . | . . . . Level 5 . | . . . . High Security . | . . . . Max Security . | . . . . Squads Dispatched 3 | . 2 1 . Investigation 2 | . 1 1 . Extermination . | . . . . Reinforcement 1 | . 1 . . Assault . | . . . . Garrison . | . . . . Intercept . | . . . . Searches Triggered . | . . . . Construction Impeded . | . . . . Haulers Reinforced . | . . . . Active Scanning Responses . | . . . . Cargo Convoy Interrupts . | . . . . Stealth | -11 -10 -9 -9 --------- Run | Yrd Mat Mat Min Distress Signals 2 | . 2 . . Communications Jammed . | . . . . Distress Signals . | . . . . Times Spotted 19 | 1 8 10 . Peak Tracking Total 4 | 1 3 4 . Tactical Retreats . | . . . . Traps | -11 -10 -9 -9 ------- Run | Yrd Mat Mat Min Traps Triggered . | . . . . Indirectly . | . . . . Trap Hack Attempts . | . . . . Triggered . | . . . . Disarmed . | . . . . Reprogrammed . | . . . . Reused . | . . . . Traps Extracted . | . . . . Installed . | . . . . Triggered . | . . . . Machines | -11 -10 -9 -9 ---------- Run | Yrd Mat Mat Min Machines Disabled . | . . . . Max in Single Turn . | . . . . Machines Repaired . | . . . . Machines Dismantled . | . . . . Machines Sabotaged . | . . . . Overloaded Fab Kills . | . . . . Hacking | -11 -10 -9 -9 --------- Run | Yrd Mat Mat Min Machines Accessed 3 | . 2 1 . Terminals 3 | . 2 1 . Fabricators . | . . . . Repair Stations . | . . . . Recycling Units . | . . . . Scanalyzers . | . . . . Garrison Access . | . . . . Total Hacks 8 | . 5 3 . Successful 3 | . 2 1 . Failed 5 | . 3 2 . Catastrophic 2 | . 1 1 . Database Lockouts . | . . . . Manual . | . . . . Terminals 8 | . 5 3 . Fabricators . | . . . . Repair Stations . | . . . . Recycling Units . | . . . . Scanalyzers . | . . . . Garrison Access . | . . . . Terminal Hacks 3 | . 2 1 . Branch Access Points 1 | . 1 . . Locate Traps 1 | . 1 . . Registered Prototypes 1 | . . 1 . Fabricator Hacks . | . . . . Repair Station Hacks . | . . . . Recycling Unit Hacks . | . . . . Scanalyzer . | . . . . Garrison Access Hacks . | . . . . Unauthorized Hacks . | . . . . Terminals . | . . . . Fabricators . | . . . . Repair Stations . | . . . . Recycling Units . | . . . . Scanalyzers . | . . . . Garrison Access . | . . . . Data Cores Recovered . | . . . . Used . | . . . . Hacking Detections 3 | . 2 1 . Full Trace Events 2 | . 1 1 . Feedback Events . | . . . . Feedback Blocked . | . . . . Robot Schematics Acquired . | . . . . Robots Built . | . . . . Authchips . | . . . . Time . | . . . . Total Robot Build Rating . | . . . . Part Schematics Acquired . | . . . . Parts Built . | . . . . Authchips . | . . . . Time . | . . . . Total Part Build Rating . | . . . . Parts Repaired . | . . . . Time . | . . . . Parts Recycled . | . . . . Recycled Matter . | . . . . Retrieved Matter . | . . . . Retrieved Components . | . . . . Parts Scanalyzed . | . . . . Part Schematics Acquired . | . . . . Parts Damaged . | . . . . Bothacking | -11 -10 -9 -9 ------------ Run | Yrd Mat Mat Min Used RIF Installer . | . . . . Robots Hacked . | . . . . Non-combat . | . . . . Combat . | . . . . Robot Hacks Applied . | . . . . Relay Couplers Released . | . . . . Fabnet Peak Effective % . | . . . . Robots Rewired . | . . . . Allies Hacked . | . . . . Hacks Repelled . | . . . . Allies | -11 -10 -9 -9 -------- Run | Yrd Mat Mat Min Total Allies . | . . . . Largest Group . | . . . . Highest-Rated Group . | . . . . Highest-Rated Ally . | . . . . Total Orders . | . . . . Ally Attacks . | . . . . Total Damage . | . . . . Kills . | . . . . Allies Corrupted . | . . . . Allies Melted . | . . . . Intel | -11 -10 -9 -9 ------- Run | Yrd Mat Mat Min Robot Analysis Total . | . . . . Derelict Logs Recovered . | . . . . Drone Launches . | . . . . Drone Recoveries . | . . . . Exploration | -11 -10 -9 -9 ------------- Run | Yrd Mat Mat Min Turns Passed 941 | 63 256 622 . Spaces Moved 413 | 61 152 200 . Core 24 | 16 8 . . Treads . | . . . . Legs 236 | . 36 200 . Wheels 153 | 45 108 . . Hover . | . . . . Flight . | . . . . Fastest Speed 50 | 50 50 120 . Average Speed 102 | 72 91 120 . Slowest Speed 150 | 80 150 120 . Overloaded Moves . | . . . . Propulsion Burnouts . | . . . . Robots Hopped . | . . . . Cave-ins Triggered . | . . . . Exploration Rate (%) 15 | 7 29 22 5 Regions Visited 3 Branch Regions 1 Pre-discovered Areas . | . . . . Known Exits Taken . | . . . . Unknown Exits Taken 3 | 1 1 1 . Scrap Searched . | . . . . Spaces Dug . | . . . . Terrain Destroyed . | . . . . Melee . | . . . . Projectile . | . . . . AOE . | . . . . Terrain Rammed . | . . . . Walls Destroyed . | . . . . Machines Disabled . | . . . . Actions | -11 -10 -9 -9 --------- Run | Yrd Mat Mat Min Total 823 | 73 207 543 . Wait 304 | . . 304 . Move 410 | 60 151 199 . Hop . | . . . . Pick Up 22 | 5 11 6 . Fast Attach . | . . . . Attach 16 | 5 7 4 . Detach . | . . . . Swap 8 | . 3 5 . Drop 6 | . . 6 . Fire 57 | 3 35 19 . Melee . | . . . . Ram . | . . . . Kick . | . . . . Crush . | . . . . Escape Stasis . | . . . . Rewire . | . . . . Trap . | . . . . Miscellaneous . | . . . . Route ------- -11/Scrapyard -10/Materials (discovered 3 exits: *Mat / Min x2) -9/Materials -9/Mines History --------- Turn | Location | Event 2 | -11/Scrapyard | Met Revision 17 47 | -11/Scrapyard | Discovered new exit (range 8) 64 | -11/Scrapyard | Entered Materials 186 | -10/Materials | Discovered new exit (range 15) 210 | -10/Materials | Core integrity fell below 50% 250 | -10/Materials | Core integrity fell below 20% 251 | -10/Materials | Lost 5 parts (1p2n2w) 316 | -10/Materials | Identified exit to Mines 320 | -10/Materials | Entered another Materials area 320 | -9/Materials | Evolved 2 slots: Utility x1, Weapon x1 938 | -9/Materials | Discovered new exit (range 5) 942 | -9/Materials | Entered Mines 942 | -9/Mines | Self-destructed Last Messages --------------- T-07 Excavator is excavating. U-05 Engineer lays Concrete. T-07 Excavator is excavating. U-05 Engineer lays Concrete. T-07 Excavator is excavating. K-01 Serf collects debris. U-05 Engineer builds a Wall. S-10 Pest destroyed. Switching to secondary target: S-10 Pest. S-10 Pest destroyed. K-01 Serf collects debris. T-07 Excavator is excavating. S-10 Pest destroyed. K-01 Serf collects debris. T-07 Excavator is excavating. K-01 Serf collects debris. T-07 Excavator is excavating. EXIT=FOUND LOCATION=UNKNOWN GOAL=ESCAPE Map ----- +----------------------------------------------------+ | ?????????????????????????????? | | ?????????????????????????????? | | ?????????????????????????????? | | ?????????????????????????????? | | ?????????????????????????????? | | ?????????????????????????????? | | ?????????????????????????????? | | ?????????????????????????????? | | ?????????????????????????????? | | ?????????????????????????????? | | ?????????????????????????????? | | ?????????????????????????????? | | ?????????????????????????????? | | ?????????????????????????????? | | ?????????????????????????????? | | ?????????????????????????????? | | ?????????????????????????????? | | ????####?????????????????????? | | ????# ?????????????????????? | | ????# #?????????????????????? | | ????# #?????????????????????? | | ??### #????????? ?????????? | | ?## ##???## ?????????? | | ?# ## g ????????? | | ?# ????????????? | | ??# @ #???????????????????? | | ??# tt#???????????????????? | | ??# ##???????????????????? | | ??# ##????????????????????? | | ??## #?????????????????????? | | ???### ?????????????????????? | | ?????? #?????????????????????? | | ?????? #?????????????????????? | | ?????? ?????????????????????? | | ??????ss?????????????????????? | | ?????? s?????????????????????? | | ?????? ?????????????????????? | | ??????? ?????????????????????? | | ???????##????????????????????? | | ?????????????????????????????? | | ?????????????????????????????? | | ?????????????????????????????? | | ?????????????????????????????? | | | | | | | | | | | | | | | +----------------------------------------------------+ Best States ------------- Heat Dissipation 38 Energy Generation 14 Energy Capacity 250 Matter Stores 300 Matter Capacity 300 Sight Range 16 Robot Scan Range 14 Terrain Scan Density 10 Power Shielding 33 Evasion (%) 55 Item Schematics ----------------- None Robot Schematics ------------------ None Fabricated ------------ Nothing Alien Tech Used ----------------- None Achievements -------------- Close Call Challenges ------------ None Game ------ Seed SapperAlloyReconstructor Manual? 0 Play Time 00:11:03 Cumulative 1.5 hours Start 2024.04.01 @ 02:35:10 End 2024.04.01 @ 16:56:08 Sessions 2 Manual Loads 0 Difficulty Rogue Special Mode None Game No. 3 Rogue 3 Adventurer 0 Explorer 0 Win Type - Total 0 Types 0/0/0/0/0/0/0/0/0 Lore% 3 Gallery% 4 Achievement% 5 Wizard Run 0 Options --------- Layout 1 ASCII 0 Keyboard 0 Movement Mouse Keybinds 0 Fullscreen 1 Font 48/Smallcaps Map View 50x35 Zoom Use 0% Tactical HUD 0 Map Filters NONE Filters NONE Steam 1 RUN: 7e78d9b5-fa80-494e-820d-f4929dff68b1